bitfinex-derivatives/quotes_BTCF0:USTF0_20250905
["timestamp","ask_amount","ask_price","bid_price","bid_amount"]
[1757077593819,2.10128,113190.0,113180.0,0.11012441]
[1757077594229,2.10128,113190.0,113180.0,0.1388814]
[1757077594532,2.4396104,113190.0,113180.0,0.0883314]
[1757077594835,0.0883382,113180.0,113170.0,0.15861018]
[1757077595133,1.65987416,113180.0,113170.0,0.0883441]
[1757077595336,1.65787416,113180.0,113170.0,0.0883441]
[1757077595729,2.01867416,113180.0,113170.0,0.0883441]
[1757077596324,2.26867416,113180.0,113160.0,0.31562775]
[1757077596527,1.75096,113170.0,113160.0,0.31562775]
[1757077596726,2.10096,113170.0,113160.0,0.31562775]
[1757077596927,1.23348,113170.0,113160.0,0.36617775]
[1757077597128,2.10092,113170.0,113160.0,0.36617775]
[1757077597535,2.09992,113170.0,113160.0,0.44881775]
[1757077598035,0.35,113170.0,113160.0,1.05961775]
[1757077598240,1.21836,113170.0,113160.0,1.05961775]
[1757077598536,1.21936,113170.0,113160.0,1.13012325]
[1757077598736,1.22036,113170.0,113160.0,1.13012325]
[1757077598938,0.293,113170.0,113160.0,1.13012325]
[1757077599135,1.16024,113170.0,113160.0,1.13012325]
[1757077599438,1.16024,113170.0,113160.0,0.88012325]
[1757077600343,1.15924,113170.0,113160.0,0.88012325]
[1757077600535,0.293,113170.0,113160.0,0.88012325]
[1757077601042,0.291,113170.0,113160.0,0.88012325]
[1757077601234,0.29,113170.0,113160.0,0.88012325]
[1757077601739,1.17348,113170.0,113160.0,0.88012325]
[1757077602142,1.2608241,113170.0,113160.0,0.70913325]
[1757077602738,1.2608241,113170.0,113160.0,0.68751256]
[1757077602938,1.5108241,113170.0,113160.0,0.20565706]
[1757077603641,1.8726241,113170.0,113160.0,0.20565706]
[1757077604041,1.8736241,113170.0,113160.0,0.20565706]
[1757077604236,1.8726241,113170.0,113160.0,0.29400896]
[1757077604540,1.8766241,113170.0,113160.0,0.29400896]
[1757077604740,1.8766241,113170.0,113160.0,0.0883519]
[1757077605041,1.8786241,113170.0,113160.0,0.0883519]
[1757077605641,0.088352,113160.0,113150.0,0.0884597]
[1757077605940,2.86644796,113160.0,113150.0,0.0883598]
[1757077606141,0.0883598,113150.0,113140.0,0.139012]
[1757077606443,0.0883598,113150.0,113140.0,0.138912]
[1757077606444,1.6816398,113150.0,113140.0,0.138912]
[1757077606946,1.9316398,113150.0,113140.0,0.088362]
[1757077608034,1.9326398,113150.0,113140.0,0.088362]
[1757077608240,1.9336398,113150.0,113130.0,0.67103294]
[1757077608439,1.8374895,113140.0,113130.0,0.67103294]
[1757077608633,1.24248,113140.0,113130.0,0.31013294]
[1757077608844,2.10896,113140.0,113130.0,0.31013294]
[1757077609146,2.10896,113140.0,113130.0,0.67093294]
[1757077609749,1.24248,113140.0,113130.0,0.67093294]
[1757077609945,0.36,113140.0,113130.0,0.92093294]
[1757077610140,1.2264,113140.0,113130.0,0.92093294]
[1757077610548,1.2274,113140.0,113130.0,0.92093294]
[1757077610750,0.361,113140.0,113130.0,0.92093294]
[1757077610945,1.22736,113140.0,113130.0,0.92093294]
[1757077611550,1.22836,113140.0,113130.0,0.92093294]
[1757077612051,1.22736,113140.0,113130.0,0.92093294]
[1757077612847,0.271,113140.0,113130.0,0.92093294]
[1757077613943,0.272,113140.0,113130.0,0.92093794]
[1757077614443,1.15448,113140.0,113130.0,0.67093794]
[1757077615145,0.0883773,113130.0,113120.0,0.0508268]
[1757077615348,2.1568973,113130.0,113120.0,0.0001768]
[1757077615549,2.5176973,113130.0,113120.0,0.0001768]
[1757077616554,2.7676973,113130.0,113120.0,0.0001768]
[1757077617255,2.7674973,113130.0,113120.0,0.0001768]
[1757077618156,2.7694973,113130.0,113120.0,0.0001768]
[1757077618453,2.7714973,113130.0,113120.0,0.0001768]
[1757077618654,1.81728,113130.0,113120.0,0.0885619]
[1757077618857,2.7713773,113130.0,113120.0,0.0885619]
[1757077619052,2.842969,113130.0,113120.0,0.0885619]
[1757077619354,3.18102496,113130.0,113120.0,0.0885619]
[1757077619541,2.22692766,113130.0,113120.0,0.0885619]
[1757077619746,2.31530496,113130.0,113120.0,0.0885619]
[1757077619946,3.18098496,113130.0,113120.0,0.0885619]
[1757077620349,2.22692766,113130.0,113120.0,0.0885619]
[1757077620654,2.31530496,113130.0,113120.0,0.0885619]
[1757077620954,3.18090496,113130.0,113120.0,0.0885619]
[1757077621642,3.18090496,113130.0,113120.0,0.0001768]
[1757077622248,2.31530496,113130.0,113120.0,0.0885619]
[1757077622449,3.18078496,113130.0,113120.0,0.0885619]
[1757077623255,2.22692766,113130.0,113120.0,0.0885619]
[1757077623556,2.06530496,113130.0,113120.0,0.0885619]
[1757077623757,2.93066496,113130.0,113120.0,0.0885619]
[1757077624255,1.97692766,113130.0,113120.0,0.0885619]
[1757077624460,1.6388717,113130.0,113120.0,0.2179619]
[1757077624646,2.5041917,113130.0,113120.0,0.2179619]
[1757077624853,1.6388717,113130.0,113120.0,0.2179619]
[1757077625050,1.6388717,113130.0,113120.0,0.4679619]
[1757077625051,0.324,113130.0,113120.0,0.4679619]
[1757077625249,1.18924,113130.0,113120.0,0.4679619]
[1757077625551,1.18724,113130.0,113120.0,0.4679619]
[1757077625857,1.18824,113130.0,113120.0,0.4679619]
[1757077626051,1.18824,113130.0,113120.0,0.8287619]
[1757077626252,0.323,113130.0,113120.0,0.8287619]
[1757077626654,1.18816,113130.0,113120.0,0.8287619]
[1757077626956,0.023,113130.0,113120.0,1.3887619]
[1757077627155,0.003,113130.0,113120.0,0.8287619]
[1757077627362,0.242,113130.0,113120.0,0.8287619]
[1757077627657,0.242,113130.0,113120.0,0.4903768]
[1757077627874,1.98165865,113130.0,113120.0,0.0001768]
[1757077628056,1.98065865,113130.0,113120.0,0.0001768]
[1757077628360,1.98165865,113130.0,113120.0,0.0001768]
[1757077628765,2.23165865,113130.0,113120.0,0.0001768]
[1757077628954,2.23065865,113130.0,113120.0,0.0001768]
[1757077629654,0.0883851,113120.0,113110.0,0.0001]
[1757077629858,0.10918769,113110.0,113100.0,0.0001]
[1757077630159,0.0884134,113090.0,113070.0,0.23730098]
[1757077630365,1.27384135,113080.0,113070.0,0.13730098]
[1757077630560,1.19484,113080.0,113070.0,0.13730098]
[1757077630760,1.19484,113080.0,113070.0,0.21800098]
[1757077631165,1.19472,113080.0,113070.0,0.21800098]
[1757077631367,1.19472,113080.0,113070.0,0.15629938]
[1757077632359,1.19472,113080.0,113070.0,0.15829938]
[1757077632559,1.1948,113080.0,113070.0,0.23899938]
[1757077633064,1.1948,113080.0,113070.0,0.24299938]
[1757077633260,1.2832164,113080.0,113070.0,0.07387528]
[1757077633763,1.2832164,113080.0,113070.0,0.05487688]
[1757077633958,2.57469775,113080.0,113070.0,0.05487688]
[1757077634268,3.18549775,113080.0,113070.0,0.00617688]
[1757077634472,3.18525775,113080.0,113070.0,0.00617688]
[1757077634966,2.93525775,113080.0,113070.0,0.00617688]
[1757077635263,1.98228135,113080.0,113070.0,0.00617688]
[1757077635568,2.93521775,113080.0,113070.0,0.09260108]
[1757077635868,2.07069775,113080.0,113070.0,0.09360108]
[1757077636257,1.98228135,113080.0,113070.0,0.09360108]
[1757077636459,2.93513775,113080.0,113070.0,0.09360108]
[1757077636661,2.93513775,113080.0,113070.0,0.09060108]
[1757077637065,2.93513775,113080.0,113070.0,0.00217688]
[1757077637968,3.18513775,113080.0,113070.0,0.00217688]
[1757077638666,2.32069775,113080.0,113070.0,0.00217688]
[1757077638969,2.84656135,113080.0,113070.0,0.09060118]
[1757077639271,2.93497775,113080.0,113070.0,0.09060118]
[1757077640269,2.93697775,113080.0,113070.0,0.08960118]
[1757077640660,2.93697775,113080.0,113070.0,0.00117688]
[1757077641058,3.18697775,113080.0,113070.0,0.00017688]
[1757077641267,3.18897775,113080.0,113070.0,0.00017688]
[1757077642472,3.21815988,113080.0,113070.0,0.00017688]
[1757077642672,2.33567988,113080.0,113070.0,0.00017688]
[1757077642965,3.21815988,113080.0,113070.0,0.00017688]
[1757077643167,0.0884244,113070.0,113060.0,0.0001]
[1757077643368,0.0884395,113060.0,113050.0,0.0884388]
[1757077643561,2.94468085,113060.0,113050.0,0.0884388]
[1757077643762,0.0884463,113050.0,113040.0,0.0884479]
[1757077643964,2.03072765,113050.0,113040.0,0.0884479]
[1757077644467,2.03072765,113050.0,113030.0,0.1371546]
[1757077644468,0.0884474,113040.0,113030.0,0.1371529]
[1757077644767,0.0884474,113040.0,113020.0,0.43011461]
[1757077644768,1.72992875,113040.0,113020.0,0.43011461]
[1757077644961,2.60461665,113030.0,113020.0,0.00017696]
[1757077645166,2.89461665,113030.0,113020.0,0.00017696]
[1757077645367,2.89357665,113030.0,113020.0,0.00017696]
[1757077645564,1.53328,113030.0,113020.0,0.13841026]
[1757077645867,2.4855353,113030.0,113020.0,0.13841026]
[1757077646074,2.89253665,113030.0,113020.0,0.00017696]
[1757077646265,3.14253665,113030.0,113020.0,0.00017696]
[1757077646573,3.14253665,113030.0,113020.0,0.00217696]
[1757077646768,2.27873665,113030.0,113020.0,0.00217696]
[1757077647464,2.89245665,113030.0,113020.0,0.00417696]
[1757077648375,3.14245665,113030.0,113020.0,0.00317696]
[1757077648668,2.02873665,113030.0,113020.0,0.00317696]
[1757077648878,2.89237665,113030.0,113020.0,0.05294696]
[1757077649079,2.89237665,113030.0,113020.0,0.00317696]
[1757077649665,0.0884635,113020.0,113010.0,0.1383413]
[1757077649866,0.40012,113020.0,113010.0,0.13006]
[1757077650069,1.67681,113020.0,113010.0,0.1687613]
[1757077650565,0.9017135,113020.0,113010.0,0.0884713]
[1757077650767,0.2202413,113010.0,113000.0,0.10807362]
[1757077650966,0.13177,113000.0,112990.0,0.64870652]
[1757077651176,1.29325,113000.0,112990.0,0.59883652]
[1757077651367,1.29025,113000.0,112990.0,0.59883652]
[1757077651977,1.28825,113000.0,112990.0,0.59883652]
[1757077652275,0.37944,113000.0,112990.0,0.89860652]
[1757077652473,1.24292,113000.0,112990.0,0.91756277]
[1757077652869,1.24192,113000.0,112990.0,0.91756277]
[1757077653467,0.37844,113000.0,112990.0,0.91956277]
[1757077653775,1.24188,113000.0,112990.0,0.91956277]
[1757077653974,1.29421,113000.0,112990.0,0.67156277]
[1757077654176,1.24188,113000.0,112990.0,0.67156277]
[1757077656372,0.3,113000.0,112990.0,0.67156277]
[1757077656573,1.16316,113000.0,112990.0,1.61056412]
[1757077656878,1.16316,113000.0,112990.0,1.20156277]
[1757077657580,0.07964,113010.0,113000.0,0.2185391]
[1757077657781,0.31944,113010.0,113000.0,0.5793391]
[1757077658482,1.03077135,113010.0,112990.0,0.59137277]
[1757077658780,1.24481,113000.0,112990.0,0.61979277]
[1757077658978,1.54048,113000.0,112990.0,0.66756277]
[1757077659482,0.9426,113010.0,113000.0,0.2185391]
[1757077659682,1.25473,113010.0,113000.0,0.1687691]
[1757077659878,2.00220325,113010.0,112990.0,0.58936837]
[1757077660182,0.79077135,113000.0,112990.0,0.61779277]
[1757077660373,0.72177,113000.0,112990.0,0.61979277]
[1757077660574,0.29944,113000.0,112990.0,0.30876277]
[1757077660769,1.37157135,113000.0,112990.0,0.02195625]
[1757077660969,1.41228,113000.0,112990.0,0.24050325]
[1757077661178,1.41228,113000.0,112990.0,0.60130325]
[1757077661373,1.41228,113000.0,112990.0,0.24050325]
[1757077661882,1.41228,113000.0,112990.0,0.59930325]
[1757077663186,1.46461,113000.0,112990.0,0.66905132]
[1757077663677,1.46461,113000.0,112990.0,0.46104625]
[1757077663678,1.96209055,113000.0,112990.0,0.46104625]
[1757077663872,2.15497135,113000.0,112980.0,0.3609]
[1757077664081,0.99005835,112990.0,112980.0,0.08029]
[1757077664282,1.04394073,112990.0,112980.0,0.23800779]
[1757077664973,0.55944,112990.0,112980.0,0.23800779]
[1757077665181,1.422,112990.0,112980.0,0.59980779]
[1757077665483,1.42204,112990.0,112980.0,0.59980779]
[1757077665677,0.30944,112990.0,112980.0,0.59980779]
[1757077665884,0.08236,113000.0,112990.0,0.222557]
[1757077666082,1.46468,113000.0,112990.0,0.222557]
[1757077666384,1.46468,113000.0,112990.0,0.583357]
[1757077666582,1.46468,113000.0,112990.0,0.65408893]
[1757077668685,1.46968,113000.0,112990.0,0.65408893]
[1757077668986,1.47089768,113000.0,112990.0,0.65408893]
[1757077669180,0.60837768,113000.0,112990.0,0.65408893]
[1757077669381,1.47085768,113000.0,112990.0,0.65408893]
[1757077670287,1.51841768,113000.0,112990.0,0.60320893]
[1757077670488,0.12972,112990.0,112980.0,0.10274299]
[1757077670787,1.08731768,112990.0,112980.0,0.10264299]
[1757077670983,1.49631903,112990.0,112980.0,0.01945299]
[1757077671178,0.12972,112980.0,112970.0,0.3400041]
[1757077671379,0.25,112980.0,112970.0,0.58354984]
[1757077671595,0.94581768,112990.0,112980.0,0.222565]
[1757077671888,1.39861768,112990.0,112980.0,0.222565]
[1757077672290,1.39661768,112990.0,112980.0,0.222565]
[1757077672786,1.85317903,112990.0,112980.0,0.08319]
[1757077673086,1.85517903,112990.0,112980.0,0.1716847]
[1757077673291,1.44617768,112990.0,112980.0,0.3097154]
[1757077673695,1.39861768,112990.0,112980.0,0.3097154]
[1757077673878,0.53637768,112990.0,112980.0,0.3097154]
[1757077674191,1.39857768,112990.0,112980.0,0.3097154]
[1757077674381,1.39757768,112990.0,112980.0,0.3097154]
[1757077674584,1.39557768,112990.0,112980.0,0.3097154]
[1757077674786,1.39857768,112990.0,112980.0,0.3097154]
[1757077675092,1.19857768,112990.0,112980.0,0.3097154]
[1757077675389,1.20057768,112990.0,112980.0,0.3097154]
[1757077675894,1.24813768,112990.0,112980.0,0.3097154]
[1757077676480,1.24813768,112990.0,112980.0,0.2588354]
[1757077676683,1.65713903,112990.0,112980.0,0.2588354]
[1757077677084,1.99713903,112990.0,112980.0,0.0871507]
[1757077677285,1.99713903,112990.0,112970.0,0.44957524]
[1757077677484,0.08216,112980.0,112970.0,0.58354524]
[1757077677688,1.19432,112980.0,112970.0,0.58354524]
[1757077677891,1.24309768,112980.0,112970.0,0.60075947]
[1757077678290,1.19553768,112980.0,112970.0,0.6706543]
[1757077678792,1.19753768,112980.0,112970.0,0.6706543]
[1757077679696,1.24609768,112980.0,112970.0,0.6197743]
[1757077679892,1.19853768,112980.0,112970.0,0.6706543]
[1757077680098,0.33637768,112980.0,112970.0,0.6706543]
[1757077680290,1.19853768,112980.0,112970.0,0.6706543]
[1757077680690,0.00421768,112980.0,112970.0,1.34965565]
[1757077680997,0.00821768,112980.0,112970.0,1.34965565]
[1757077681198,0.34037768,112980.0,112970.0,0.6706543]
[1757077681588,0.73493768,112980.0,112970.0,0.2589794]
[1757077681790,1.14393903,112980.0,112970.0,0.2589794]
[1757077681984,1.14593903,112980.0,112970.0,0.2589794]
[1757077682294,1.14593903,112980.0,112970.0,0.2589793]
[1757077682500,1.14493903,112980.0,112970.0,0.2589793]
[1757077683104,1.55045768,112980.0,112970.0,0.3098593]
[1757077683397,1.59801768,112980.0,112970.0,0.1704761]
[1757077683589,1.59801768,112980.0,112970.0,0.01739127]
[1757077683590,2.45631433,112980.0,112970.0,0.01739127]
[1757077683900,2.70631433,112980.0,112970.0,0.00017704]
[1757077684098,2.70831433,112980.0,112970.0,0.00017704]
[1757077684292,2.70831433,112980.0,112970.0,0.10067183]
[1757077684491,2.70831433,112980.0,112970.0,0.01748183]
[1757077684690,2.70831433,112980.0,112970.0,0.00017704]
[1757077684894,0.04756,112950.0,112940.0,0.20964955]
[1757077685097,1.3526,112950.0,112940.0,0.24195955]
[1757077685397,1.2018,112950.0,112940.0,0.24195955]
[1757077685590,1.15424,112950.0,112940.0,0.29283955]
[1757077685796,1.15545768,112950.0,112940.0,0.29283955]
[1757077685996,1.20301768,112950.0,112940.0,0.24195955]
[1757077686296,1.20401768,112950.0,112940.0,0.24195955]
[1757077686693,0.86429768,112950.0,112940.0,0.54283955]
[1757077686895,0.86429768,112950.0,112940.0,0.56011205]
[1757077687098,0.94745768,112950.0,112940.0,0.56011205]
[1757077687301,0.99501768,112950.0,112940.0,0.31011205]
[1757077687501,1.20501768,112950.0,112940.0,0.25923205]
[1757077688504,0.34293768,112950.0,112940.0,0.25923205]
[1757077688699,0.08537768,112950.0,112940.0,0.31011205]
[1757077688897,0.94745768,112950.0,112940.0,0.31011205]
[1757077689403,0.99501768,112950.0,112940.0,0.25923205]
[1757077689598,0.00321768,112950.0,112940.0,0.56011205]
[1757077689900,0.08537768,112950.0,112940.0,0.56011205]
[1757077690602,0.34293768,112950.0,112940.0,0.25923205]
[1757077691701,0.43145598,112950.0,112940.0,0.25923205]
[1757077692004,0.34293768,112950.0,112940.0,0.25923205]
[1757077692702,0.13293768,112950.0,112940.0,0.25923205]
[1757077693002,0.65617768,112950.0,112940.0,0.31011205]
[1757077693298,1.15745768,112950.0,112940.0,0.31011205]
[1757077693603,0.29537768,112950.0,112940.0,0.31011205]
[1757077693995,0.21321768,112950.0,112940.0,0.31011205]
[1757077694400,0.00321768,112950.0,112940.0,0.31011205]
[1757077695105,0.00221768,112950.0,112940.0,0.31011205]
[1757077695305,0.00421768,112950.0,112940.0,0.56011205]
[1757077696407,0.00321768,112950.0,112940.0,0.56011205]
[1757077696706,0.00321768,112950.0,112940.0,1.10011205]
[1757077696897,0.00321768,112950.0,112940.0,1.44091205]
[1757077697096,0.00221768,112950.0,112940.0,1.44091205]
[1757077697304,0.00221768,112950.0,112940.0,1.78058114]
[1757077697603,0.00121768,112950.0,112940.0,1.09091205]
[1757077697806,0.00121768,112950.0,112940.0,1.45091205]
[1757077698001,0.00121768,112950.0,112940.0,1.11091205]
[1757077698407,0.00121768,112950.0,112940.0,0.86091205]
[1757077698809,0.08720768,112950.0,112940.0,0.86091205]
[1757077699010,0.00121768,112950.0,112940.0,0.86091205]
[1757077699606,0.00221768,112950.0,112940.0,0.86091205]
[1757077699809,0.00321768,112950.0,112940.0,0.86091205]
[1757077700008,0.00321768,112950.0,112940.0,1.47091205]
[1757077700412,0.00421768,112950.0,112940.0,1.47091205]
[1757077700606,0.00421768,112950.0,112940.0,1.70283205]
[1757077700807,0.09020768,112950.0,112940.0,0.67091205]
[1757077701010,0.08920768,112950.0,112940.0,0.67091205]
[1757077701613,0.08920768,112950.0,112940.0,0.31011205]
[1757077702211,0.08820768,112950.0,112940.0,0.31011205]
[1757077702815,0.08720768,112950.0,112940.0,0.31011205]
[1757077703010,0.00321768,112950.0,112940.0,0.31011205]
[1757077703205,0.08920768,112950.0,112940.0,0.31011205]
[1757077703406,0.09020768,112950.0,112940.0,0.31011205]
[1757077703711,0.00421768,112950.0,112940.0,0.31011205]
[1757077704514,0.09020768,112950.0,112940.0,0.31011205]
[1757077704816,0.00421768,112950.0,112940.0,0.31011205]
[1757077705412,0.09020768,112950.0,112940.0,0.31011205]
[1757077705817,0.00421768,112950.0,112940.0,0.31011205]
[1757077706111,0.09020768,112950.0,112940.0,0.31011205]
[1757077706319,0.00421768,112950.0,112940.0,0.31011205]
[1757077706917,0.09020768,112950.0,112940.0,0.31011205]
[1757077708119,0.13927768,112950.0,112940.0,0.25923205]
[1757077708416,0.36927768,112950.0,112940.0,0.25923205]
[1757077708918,0.73007768,112950.0,112940.0,0.17604205]
[1757077709117,0.73007768,112950.0,112940.0,0.25523205]
[1757077709318,0.97907768,112950.0,112940.0,0.25523205]
[1757077709717,0.94907768,112950.0,112940.0,0.25523205]
[1757077710511,0.95007768,112950.0,112940.0,0.25523205]
[1757077711920,0.95007768,112950.0,112940.0,0.30634205]
[1757077712610,0.65100768,112950.0,112940.0,0.30634205]
[1757077713224,0.70007768,112950.0,112940.0,0.25523205]
[1757077714420,0.70007768,112950.0,112940.0,0.30634205]
[1757077714620,0.65100768,112950.0,112940.0,0.30634205]
[1757077715218,0.70007768,112950.0,112940.0,0.30634205]
[1757077715716,0.65100768,112950.0,112940.0,0.30634205]
[1757077715918,0.45100768,112950.0,112940.0,0.30634205]
[1757077716121,0.50007768,112950.0,112940.0,0.30634205]
[1757077716319,0.80007768,112950.0,112940.0,0.30634205]
[1757077718821,0.43927768,112950.0,112940.0,0.30634205]
[1757077720521,0.43927768,112950.0,112940.0,0.25523205]
[1757077720920,0.39020768,112950.0,112940.0,0.30634205]
[1757077721121,0.43927768,112950.0,112940.0,0.25523205]
[1757077722424,0.43927768,112950.0,112940.0,0.30634205]
[1757077723322,0.52779558,112950.0,112940.0,0.16670875]
[1757077723520,0.2235858,112940.0,112930.0,0.00442]
[1757077723720,1.7957058,112940.0,112930.0,0.00442]
[1757077724020,1.79692348,112940.0,112930.0,0.00442]
[1757077724322,0.84707768,112940.0,112930.0,0.1721435]
[1757077724623,0.79800768,112940.0,112930.0,0.31056784]
[1757077724821,0.38201768,112940.0,112930.0,0.56056784]
[1757077725018,0.81864768,112940.0,112930.0,0.31056784]
[1757077725220,0.80864768,112940.0,112930.0,0.25945784]
[1757077725515,0.13784768,112940.0,112930.0,0.25945784]
[1757077725723,0.13884768,112940.0,112930.0,0.25945784]
[1757077725923,0.08820768,112940.0,112930.0,0.30640784]
[1757077727522,0.00221768,112940.0,112930.0,0.55640784]
[1757077727731,0.0001,112950.0,112940.0,0.0885257]
[1757077727920,0.0002,112960.0,112950.0,0.2127479]
[1757077728226,1.3484,112970.0,112960.0,0.21274]
[1757077728417,0.05064,112960.0,112950.0,0.4493143]
[1757077728619,0.81853,112960.0,112950.0,0.1657988]
[1757077728820,0.05064,112950.0,112940.0,0.2127536]
[1757077729020,0.48853,112950.0,112940.0,0.1658036]
[1757077729220,0.48953,112950.0,112940.0,0.1658036]
[1757077729621,1.55077,112950.0,112940.0,0.07728]
[1757077729820,1.54977,112950.0,112940.0,0.1658068]
[1757077730528,1.55077,112950.0,112940.0,0.1658068]
[1757077730728,1.55177,112950.0,112940.0,0.00442]
[1757077730920,1.80177,112950.0,112940.0,0.00442]
[1757077731429,1.8902889,112950.0,112940.0,0.00442]
[1757077733542,2.18221505,112950.0,112940.0,0.00442]
[1757077733730,2.18209505,112950.0,112940.0,0.00442]
[1757077734032,0.98245615,112950.0,112940.0,0.1702268]
[1757077734235,1.84357615,112950.0,112940.0,0.1702268]
[1757077734734,1.93209525,112950.0,112940.0,0.00442]
[1757077734935,2.18209525,112950.0,112940.0,0.00442]
[1757077735731,0.0885348,112930.0,112920.0,0.00027712]
[1757077735938,2.7228771,112930.0,112920.0,0.00017712]
[1757077736240,2.68095095,112930.0,112920.0,0.00017712]
[1757077740138,0.2162781,112910.0,112900.0,0.42983312]
[1757077740337,1.14045615,112910.0,112900.0,0.42973312]
[1757077740738,2.00153615,112910.0,112900.0,0.50701312]
[1757077741243,2.09008445,112910.0,112900.0,0.50701312]
[1757077741840,2.09008445,112910.0,112900.0,0.43273312]
[1757077742940,0.7208,112910.0,112900.0,0.80696312]
[1757077743235,0.93827,112920.0,112910.0,0.2127783]
[1757077743435,0.40709,112920.0,112910.0,0.2127783]
[1757077743633,1.34971,112930.0,112920.0,0.2127705]
[1757077743835,0.82853,112930.0,112920.0,0.2127705]
[1757077744136,0.3608,112930.0,112920.0,1.03469665]
[1757077744338,0.3608,112930.0,112920.0,0.4627705]
[1757077744541,0.72981615,112930.0,112920.0,0.12423]
[1757077744734,0.62789,112930.0,112920.0,0.12423]
[1757077745237,0.97045615,112930.0,112920.0,0.12423]
[1757077745637,0.67853,112930.0,112920.0,0.12423]
[1757077745838,0.67853,112930.0,112920.0,0.2127703]
[1757077746442,0.67853,112930.0,112920.0,0.1658203]
[1757077746743,0.67853,112930.0,112920.0,0.2127703]
[1757077748445,0.67853,112930.0,112920.0,0.1658203]
[1757077748845,0.97045615,112930.0,112920.0,0.1658203]
[1757077749448,1.00697552,112930.0,112920.0,0.1658203]
[1757077750745,1.81741552,112930.0,112920.0,0.54121582]
[1757077750945,0.3608,112930.0,112920.0,0.82121582]
[1757077751142,1.22188,112930.0,112920.0,0.82121582]
[1757077751538,0.97924552,112930.0,112920.0,0.2127703]
[1757077751738,0.07102651,112960.0,112950.0,0.2127468]
[1757077751739,0.09747651,112960.0,112950.0,0.2127468]
[1757077751940,0.35028651,112960.0,112950.0,1.86123784]
[1757077752136,0.33,112960.0,112950.0,2.34123784]
[1757077752340,0.33,112960.0,112950.0,1.77279232]
[1757077752542,0.40709,112960.0,112950.0,1.26279232]
[1757077752845,0.73553552,112960.0,112950.0,1.26279232]
[1757077753046,1.19104,112960.0,112950.0,1.78279232]
[1757077753351,1.19204,112960.0,112950.0,1.51279232]
[1757077753558,0.331,112960.0,112950.0,1.4743468]
[1757077753757,0.002,112960.0,112950.0,1.88453291]
[1757077754050,0.001,112960.0,112950.0,0.9343468]
[1757077754248,0.36809,112960.0,112950.0,0.9343468]
[1757077754455,0.41973,112960.0,112950.0,0.9343468]
[1757077755254,0.41144,112990.0,112980.0,0.2127545]
[1757077755255,0.08458,112990.0,112980.0,0.2127545]
[1757077755463,1.34181,112990.0,112980.0,0.48506]
[1757077755753,1.29554,112990.0,112980.0,0.5735545]
[1757077755947,0.43458,112990.0,112980.0,0.64477409]
[1757077756146,1.29554,112990.0,112980.0,0.64477409]
[1757077756340,0.43458,112990.0,112980.0,0.64477409]
[1757077756854,0.352,112990.0,112980.0,1.5949602]
[1757077757050,0.002,112990.0,112980.0,1.5949602]
[1757077757250,0.86102,113000.0,112990.0,0.2127468]
[1757077757251,0.0001,113000.0,112990.0,0.2127468]
[1757077757448,0.04627,113030.0,113000.0,0.212739]
[1757077757449,0.0001,113010.0,113000.0,0.212739]
[1757077757644,0.08468,113020.0,113010.0,0.2127312]
[1757077757954,0.32458,113020.0,113010.0,0.58874715]
[1757077758754,1.23165,113020.0,113010.0,0.43748]
[1757077759049,1.23165,113020.0,113010.0,0.5259514]
[1757077759646,1.18534,113020.0,113010.0,0.5735314]
[1757077759843,0.32458,113020.0,113010.0,0.5735314]
[1757077760044,1.18534,113020.0,113010.0,0.5735314]
[1757077760244,0.32458,113020.0,113010.0,0.5735314]
[1757077760446,1.18926,113020.0,113010.0,0.5735314]
[1757077760953,1.19226,113020.0,113010.0,0.5735314]
[1757077761146,0.33158,113020.0,113010.0,0.5735314]
[1757077761346,1.19226,113020.0,113010.0,0.5735314]
[1757077761551,1.23853,113020.0,113010.0,0.5735314]
[1757077762854,1.23853,113020.0,113010.0,0.5259514]
[1757077763049,1.48853,113020.0,113010.0,0.4492714]
[1757077763449,1.48853,113020.0,113010.0,0.5259514]
[1757077763953,0.62785,113020.0,113010.0,0.5259514]
[1757077764260,1.48837,113020.0,113010.0,0.5259514]
[1757077764462,1.48833,113020.0,113010.0,0.5259514]
[1757077765256,1.23833,113020.0,113010.0,0.5259514]
[1757077765461,1.23833,113020.0,113010.0,0.5735314]
[1757077765654,0.37785,113020.0,113010.0,0.5735314]
[1757077765854,1.23829,113020.0,113010.0,0.5735314]
[1757077766056,1.18802,113020.0,113010.0,0.5735314]
[1757077766254,1.18602,113020.0,113010.0,0.5735314]
[1757077766456,1.18702,113020.0,113010.0,0.5735314]
[1757077766955,0.32658,113020.0,113010.0,0.5735314]
[1757077767163,1.18694,113020.0,113010.0,0.5735314]
[1757077767659,1.23321,113020.0,113010.0,0.5259514]
[1757077769263,1.23221,113020.0,113010.0,0.5259514]
[1757077769458,1.23221,113020.0,113010.0,0.4492714]
[1757077769765,1.73085961,113020.0,113010.0,0.4492714]
[1757077769961,1.64239611,113020.0,113010.0,0.4492714]
[1757077770155,1.23221,113020.0,113010.0,0.5259514]
[1757077770355,1.23321,113020.0,113010.0,0.5259514]
[1757077770765,0.37285,113020.0,113010.0,0.5259514]
[1757077771061,1.23309,113020.0,113010.0,0.5259514]
[1757077772056,1.23309,113020.0,113010.0,0.4492714]
[1757077772468,0.37285,113020.0,113010.0,0.5259514]
[1757077772656,1.23301,113020.0,113010.0,0.5259514]
[1757077773372,1.23301,113020.0,113010.0,0.4492714]
[1757077773558,1.3214728,113020.0,113010.0,0.4492714]
[1757077773761,1.73165891,113020.0,113010.0,0.4492714]
[1757077773961,1.64319611,113020.0,113010.0,0.4492714]
[1757077774260,1.73165891,113020.0,113010.0,0.4492714]
[1757077774658,1.73165891,113020.0,113010.0,0.3608]
[1757077774863,0.2193207,113010.0,113000.0,0.0001]
[1757077775170,0.13085,113000.0,112990.0,0.4493825]
[1757077775358,1.3994085,113000.0,112990.0,0.5259625]
[1757077775858,1.31093,113000.0,112990.0,0.5259625]
[1757077776370,1.3994085,113000.0,112990.0,0.5269625]
[1757077777372,1.3994085,113000.0,112990.0,0.5279625]
[1757077777572,1.4004085,113000.0,112990.0,0.5269625]
[1757077777775,1.31185,113000.0,112990.0,0.5745425]
[1757077778774,1.31185,113000.0,112990.0,0.58983863]
[1757077779272,1.31385,113000.0,112990.0,0.58983863]
[1757077779674,0.45185,113000.0,112990.0,0.58983863]
[1757077779874,1.31385,113000.0,112990.0,0.58883863]
[1757077780877,1.31185,113000.0,112990.0,0.58883863]
[1757077781172,1.31285,113000.0,112990.0,0.58883863]
[1757077782663,1.2665,113000.0,112990.0,0.58883863]
[1757077783161,0.40658,113000.0,112990.0,0.58883863]
[1757077783367,1.26646,113000.0,112990.0,0.58883863]
[1757077784175,1.31273,113000.0,112990.0,0.54126003]
[1757077784567,1.31273,113000.0,112990.0,0.58884003]